bitfinex/quotes_BTCUSD_20240721
["timestamp","ask_amount","ask_price","bid_price","bid_amount"]
[1721565955248,1.07111028,66971.0,66970.0,0.12600404]
[1721565955418,1.07111028,66971.0,66970.0,0.002]
[1721565955629,1.36974628,66971.0,66970.0,0.002]
[1721565956013,1.07111028,66971.0,66970.0,0.002]
[1721565957526,1.50672081,66971.0,66970.0,0.002]
[1721565958909,1.60672081,66971.0,66970.0,0.002]
[1721565959099,1.46974628,66971.0,66970.0,0.002]
[1721565960160,1.045275,66968.0,66967.0,0.009196]
[1721565960327,1.34025674,66968.0,66967.0,0.009196]
[1721565960527,1.35358406,66968.0,66967.0,0.009196]
[1721565961439,1.37658406,66968.0,66967.0,0.009196]
[1721565961653,1.49403442,66968.0,66967.0,0.009196]
[1721565961863,1.58403442,66968.0,66967.0,0.009196]
[1721565962094,1.59403442,66968.0,66967.0,0.009196]
[1721565962698,1.47658406,66968.0,66967.0,0.009196]
[1721565963803,1.17793406,66968.0,66967.0,0.009196]
[1721565964919,1.18702798,66968.0,66967.0,0.009196]
[1721565971099,1.10772798,66968.0,66967.0,0.009196]
[1721565977712,1.18482798,66968.0,66967.0,0.009196]
[1721565983712,0.48347798,66968.0,66967.0,0.009196]
[1721565983922,0.64477651,66968.0,66967.0,0.009196]
[1721565984123,0.94342651,66968.0,66967.0,0.009196]
[1721565986814,1.00932651,66968.0,66967.0,0.009196]
[1721565987017,1.16370825,66968.0,66967.0,0.009196]
[1721565987387,1.46235825,66968.0,66967.0,0.009196]
[1721565990259,1.56910038,66968.0,66967.0,0.009196]
[1721565990460,1.61910038,66968.0,66967.0,0.009196]
[1721565990691,1.70910038,66968.0,66967.0,0.009196]
[1721565990934,1.65235825,66968.0,66967.0,0.009196]
[1721565993178,1.51235825,66968.0,66967.0,0.009196]
[1721565998753,1.56235825,66968.0,66967.0,0.009196]
[1721565999808,1.56235825,66968.0,66967.0,1e-08]
[1721566000418,0.746712,66960.0,66959.0,0.009207]
[1721566000570,0.90109374,66960.0,66959.0,0.009207]
[1721566000782,0.91305774,66960.0,66959.0,0.009207]
[1721566001579,0.91705774,66960.0,66959.0,0.009207]
[1721566013877,0.92615853,66960.0,66959.0,0.009207]
[1721566015574,0.92615853,66960.0,66959.0,0.13324032]
[1721566019835,1.30154353,66960.0,66959.0,0.13324032]
[1721566023692,1.22484353,66960.0,66959.0,0.13324032]
[1721566023861,1.22484353,66960.0,66959.0,0.009207]
[1721566023862,1.60554353,66960.0,66959.0,0.009207]
[1721566024535,1.51554353,66960.0,66959.0,0.009207]
[1721566024950,1.51454353,66960.0,66959.0,0.009207]
[1721566025185,1.51154353,66960.0,66959.0,0.009207]
[1721566026070,1.52054353,66960.0,66959.0,0.010207]
[1721566026283,1.52754353,66960.0,66959.0,0.010207]
[1721566026638,1.53854353,66960.0,66959.0,0.011207]
[1721566026845,1.53154353,66960.0,66959.0,0.011207]
[1721566027048,1.54054353,66960.0,66959.0,0.011207]
[1721566027537,1.53154353,66960.0,66959.0,0.011207]
[1721566027956,1.51154353,66960.0,66959.0,0.009207]
[1721566028387,1.54896392,66960.0,66959.0,0.010207]
[1721566028542,1.56196392,66960.0,66959.0,0.010207]
[1721566030087,1.61196392,66960.0,66959.0,0.010207]
[1721566030293,1.56196392,66960.0,66959.0,0.010207]
[1721566033861,1.61196392,66960.0,66959.0,0.010207]
[1721566034070,1.65196392,66960.0,66959.0,0.010207]
[1721566034943,1.045478,66955.0,66954.0,0.0618]
[1721566035171,1.29985974,66955.0,66954.0,0.0618]
[1721566035370,1.31045487,66955.0,66954.0,0.0618]
[1721566037294,1.31845487,66955.0,66954.0,0.0618]
[1721566038763,1.32845487,66955.0,66954.0,0.0628]
[1721566039782,1.32845487,66955.0,66954.0,0.063724]
[1721566051354,1.41845487,66955.0,66954.0,0.001924]
[1721566051557,1.40355487,66955.0,66954.0,0.001924]
[1721566053179,1.32845487,66955.0,66954.0,0.001924]
[1721566054666,1.41845487,66955.0,66954.0,0.001924]
[1721566054868,1.32845487,66955.0,66954.0,0.001924]
[1721566065509,1.41845487,66955.0,66954.0,0.001924]
[1721566065692,1.32845487,66955.0,66954.0,0.001924]
[1721566067563,1.32845487,66955.0,66954.0,0.145324]
[1721566069217,0.73093987,66955.0,66954.0,0.26936905]
[1721566069626,0.27785013,66955.0,66954.0,0.26936905]
[1721566069833,0.12849613,66955.0,66954.0,0.26936905]
[1721566070241,0.12856522,66955.0,66954.0,0.26936905]
[1721566071186,0.02856522,66955.0,66954.0,0.145324]
[1721566071387,0.02856522,66955.0,66954.0,0.26936212]
[1721566072219,0.02856522,66955.0,66954.0,0.2693621]
[1721566074519,0.018,66955.0,66954.0,0.26936205]
[1721566075124,0.02856709,66955.0,66954.0,0.145324]
[1721566075531,0.32727509,66955.0,66954.0,0.145324]
[1721566075677,0.47662909,66955.0,66954.0,0.145324]
[1721566075877,0.57662909,66955.0,66954.0,0.145324]
[1721566076101,1.15415245,66955.0,66954.0,0.001924]
[1721566076289,1.02971883,66955.0,66954.0,0.001924]
[1721566079600,1.02971883,66955.0,66954.0,0.140324]
[1721566089495,0.73101083,66955.0,66954.0,0.140324]
[1721566096292,0.73101083,66955.0,66954.0,0.063524]
[1721566096613,0.73101083,66955.0,66954.0,0.001924]
[1721566096970,1.02971883,66955.0,66954.0,0.001924]
[1721566097163,0.73101083,66955.0,66954.0,0.001924]
[1721566099317,1.02971883,66955.0,66954.0,0.001924]
[1721566099480,0.73101083,66955.0,66954.0,0.001924]
[1721566099649,1.02971883,66955.0,66954.0,0.001924]
[1721566100044,0.73101083,66955.0,66954.0,0.001924]
[1721566100254,1.02971883,66955.0,66954.0,0.001924]
[1721566100468,0.73101083,66955.0,66954.0,0.001924]
[1721566101530,1.02971883,66955.0,66954.0,0.001924]
[1721566104447,0.73101083,66955.0,66954.0,0.143324]
[1721566105127,1.02971883,66955.0,66954.0,0.143324]
[1721566105353,0.73101083,66955.0,66954.0,0.143324]
[1721566106190,0.73101083,66955.0,66954.0,0.26736781]
[1721566106625,0.57662909,66955.0,66954.0,0.26736781]
[1721566107673,0.57662909,66955.0,66954.0,0.143324]
[1721566107896,0.57662909,66955.0,66954.0,0.26736368]
[1721566108105,0.57662909,66955.0,66954.0,0.143324]
[1721566108306,0.57662909,66955.0,66954.0,0.26736434]
[1721566110466,0.57662909,66955.0,66954.0,0.18796434]
[1721566111818,0.57662909,66955.0,66954.0,0.12596434]
[1721566113500,1.01843709,66955.0,66954.0,0.12596434]
[1721566113694,0.71972909,66955.0,66954.0,0.12596434]
[1721566113900,0.57662909,66955.0,66954.0,0.26996434]
[1721566114109,0.57662909,66955.0,66954.0,0.145924]
[1721566114260,0.57662909,66955.0,66954.0,0.26996434]
[1721566117258,0.87533709,66955.0,66954.0,0.26996434]
[1721566120217,0.87533709,66955.0,66954.0,0.145924]
[1721566133112,0.57662909,66955.0,66954.0,0.26996639]
[1721566133660,0.02856709,66955.0,66954.0,0.26996639]
[1721566133871,0.02856709,66955.0,66954.0,0.71802256]
[1721566134090,0.018,66955.0,66954.0,0.71802256]
[1721566134675,0.008,66955.0,66954.0,0.71702256]
[1721566135288,0.00084,66959.0,66958.0,0.149347]
[1721566135484,0.00084,66959.0,66958.0,0.34967756]
[1721566135688,0.01140953,66959.0,66958.0,0.40987756]
[1721566136630,0.01240953,66959.0,66958.0,0.40987756]
[1721566137118,0.01240953,66959.0,66958.0,0.4098748]
[1721566137514,0.00184,66959.0,66958.0,0.285847]
[1721566137717,0.00184,66959.0,66958.0,0.4098748]
[1721566137920,0.00384,66959.0,66958.0,0.4098748]
[1721566139069,0.01441572,66959.0,66958.0,0.4098748]
[1721566139472,0.01441572,66959.0,66958.0,0.7085688]
[1721566139917,0.00384,66959.0,66958.0,0.7085688]
[1721566140332,0.00384,66959.0,66958.0,1.00726108]
[1721566140895,0.00384,66959.0,66958.0,0.70856708]
[1721566142220,0.00184,66959.0,66958.0,0.71256708]
[1721566143016,0.00184,66959.0,66958.0,0.71255996]
[1721566143431,0.00284,66959.0,66958.0,0.71455996]
[1721566145840,0.00284,66959.0,66958.0,0.7145596]
[1721566146725,0.00284,66959.0,66958.0,0.71455959]
[1721566149577,0.00284,66959.0,66958.0,0.71455947]
[1721566152562,0.00284,66959.0,66958.0,0.590541]
[1721566152762,0.00284,66959.0,66958.0,0.71455947]
[1721566157158,0.00284,66959.0,66958.0,0.71455947]
[1721566158505,0.00284,66959.0,66958.0,1.01325347]
[1721566158711,0.00284,66959.0,66958.0,0.71455947]
[1721566159142,0.00284,66959.0,66958.0,0.590541]
[1721566159311,0.00284,66959.0,66958.0,0.71455918]
[1721566162481,0.00284,66959.0,66958.0,0.71455917]
[1721566163793,0.00284,66959.0,66958.0,1.01325317]
[1721566165769,0.00284,66959.0,66958.0,0.889235]
[1721566165986,0.00284,66959.0,66958.0,1.01325314]
[1721566168479,0.00284,66959.0,66958.0,1.31194714]
[1721566169168,0.00284,66959.0,66958.0,1.01324781]
[1721566170006,0.00284,66959.0,66958.0,1.31194181]
[1721566172182,0.00284,66959.0,66958.0,1.187929]
[1721566172385,0.00284,66959.0,66958.0,1.31194373]
[1721566174433,0.00284,66959.0,66958.0,1.01324973]
[1721566175506,0.00284,66959.0,66958.0,1.187929]
[1721566175706,0.00284,66959.0,66958.0,1.31194371]
[1721566176742,0.00284,66959.0,66958.0,1.01324971]
[1721566177161,0.00284,66959.0,66958.0,1.31194371]
[1721566177363,0.00284,66959.0,66958.0,1.01324971]
[1721566178769,0.00284,66959.0,66958.0,0.889235]
[1721566178973,0.00284,66959.0,66958.0,1.31194385]
[1721566179168,0.00284,66959.0,66958.0,1.187929]
[1721566179370,0.00284,66959.0,66958.0,1.31194386]
[1721566182105,0.00284,66959.0,66958.0,1.187929]
[1721566182317,0.00284,66959.0,66958.0,1.31193854]
[1721566184406,0.00284,66959.0,66958.0,1.35673891]
[1721566184613,0.00284,66959.0,66958.0,1.31193854]
[1721566185446,0.00284,66959.0,66958.0,1.35676215]
[1721566188631,0.00284,66959.0,66958.0,1.81501428]
[1721566188827,0.00284,66959.0,66958.0,2.33214039]
[1721566189083,0.00284,66959.0,66958.0,2.44418202]
[1721566189277,0.00284,66959.0,66958.0,2.44414834]
[1721566189472,0.00284,66959.0,66958.0,2.46714834]
[1721566189875,0.00084,66959.0,66958.0,2.46514834]
[1721566190087,0.00184,66959.0,66958.0,2.47114834]
[1721566190400,0.00184,66959.0,66958.0,2.35911033]
[1721566190525,0.00084,66959.0,66958.0,2.34911033]
[1721566190931,0.00284,66959.0,66958.0,2.36611033]
[1721566191138,0.00284,66959.0,66958.0,2.35511033]
[1721566191139,0.00184,66959.0,66958.0,2.35511033]
[1721566191418,0.00084,66959.0,66958.0,2.34911033]
[1721566191752,0.00084,66959.0,66958.0,1.71400474]
[1721566191753,0.00184,66959.0,66958.0,1.71400474]
[1721566191958,0.00184,66959.0,66958.0,2.35510824]
[1721566192162,0.00184,66959.0,66958.0,2.36910824]
[1721566192163,0.00284,66959.0,66958.0,2.36910824]
[1721566192564,0.00284,66959.0,66958.0,2.45867771]
[1721566195324,0.00284,66959.0,66958.0,2.36910824]
[1721566196554,0.00284,66959.0,66958.0,2.45863977]
[1721566197566,0.00284,66959.0,66958.0,2.36910824]
[1721566198518,0.00284,66959.0,66958.0,2.06003598]
[1721566198694,0.00284,66959.0,66958.0,2.37002803]
[1721566198901,0.00284,66959.0,66958.0,2.32003196]
[1721566199458,0.00284,66959.0,66958.0,2.38716949]
[1721566200009,0.00284,66959.0,66958.0,1.71198939]
[1721566200219,0.00284,66959.0,66958.0,1.71955516]
[1721566200457,0.00284,66959.0,66958.0,1.48123232]
[1721566201082,0.00284,66959.0,66958.0,1.48124116]
[1721566204220,0.00284,66959.0,66958.0,1.35723474]
[1721566204418,0.00284,66959.0,66958.0,1.48124116]
[1721566207418,0.00284,66959.0,66958.0,1.71957797]
[1721566210200,0.00284,66959.0,66958.0,1.58307797]
[1721566211019,0.00284,66959.0,66958.0,1.22073474]
[1721566211231,0.00284,66959.0,66958.0,1.58307797]
[1721566215552,0.00284,66959.0,66958.0,1.22073474]
[1721566215771,0.00284,66959.0,66958.0,1.5307508]
[1721566216190,0.00284,66959.0,66958.0,1.72657797]
[1721566216419,0.00284,66959.0,66958.0,2.07253905]
[1721566216632,0.00284,66959.0,66958.0,2.3040652]
[1721566216847,0.00284,66959.0,66958.0,2.44362233]
[1721566217061,0.00284,66959.0,66958.0,2.46662233]
[1721566217470,0.00284,66959.0,66958.0,2.37703907]
[1721566218966,0.00284,66959.0,66958.0,2.48898613]
[1721566219189,0.00284,66959.0,66958.0,2.17897194]
[1721566219420,0.00284,66959.0,66958.0,2.42701162]
[1721566220080,0.00284,66959.0,66958.0,2.72570562]
[1721566220517,0.00284,66959.0,66958.0,2.88300562]
[1721566220743,0.00284,66959.0,66958.0,2.88295516]
[1721566220951,0.00284,66959.0,66958.0,2.36590663]
[1721566221163,0.00284,66959.0,66958.0,2.88295297]
[1721566221371,0.00284,66959.0,66958.0,3.01725845]
[1721566221581,0.00084,66967.0,66966.0,1.742624]
[1721566221787,0.00084,66967.0,66966.0,2.70453597]
[1721566221996,0.00084,66967.0,66966.0,3.37453597]
[1721566222199,0.00084,66967.0,66966.0,2.70453597]
[1721566222410,0.00084,66967.0,66966.0,2.86183597]
[1721566222825,0.00184,66967.0,66966.0,2.87583597]
[1721566223032,0.00184,66967.0,66966.0,3.43583597]
[1721566223237,0.00084,66967.0,66966.0,3.58381689]
[1721566223461,0.00084,66967.0,66966.0,3.65586534]
[1721566223896,0.00084,66967.0,66966.0,3.65586508]
[1721566224096,0.00084,66967.0,66966.0,3.61168985]
[1721566224097,0.00284,66967.0,66966.0,3.61168985]
[1721566224294,0.00284,66967.0,66966.0,3.5497103]
[1721566224502,0.00184,66967.0,66966.0,3.5357103]
[1721566224908,0.00284,66967.0,66966.0,3.5497103]
[1721566225139,0.00284,66967.0,66966.0,3.6116894]
[1721566225348,0.00284,66967.0,66966.0,3.74574147]
[1721566225557,0.00184,66967.0,66966.0,3.66976237]
[1721566225756,0.00184,66967.0,66966.0,3.73173922]
[1721566226035,0.00184,66967.0,66966.0,3.68376237]
[1721566226456,0.00184,66967.0,66966.0,3.5497103]
[1721566227096,0.00184,66967.0,66966.0,3.54968256]
[1721566227307,0.00184,66967.0,66966.0,3.54968244]
[1721566230410,0.00184,66967.0,66966.0,3.55862961]
[1721566230823,0.00184,66967.0,66966.0,3.21641806]
[1721566230824,1e-06,66967.0,66966.0,3.21641806]
[1721566231028,1e-06,66967.0,66966.0,3.85728161]
[1721566231401,0.00084,66970.0,66966.0,3.84328161]
[1721566231632,0.00084,66970.0,66969.0,2.19362874]
[1721566231789,0.00084,66970.0,66969.0,3.64749229]
[1721566232186,0.00084,66970.0,66969.0,3.75903276]
[1721566233508,0.00084,66970.0,66969.0,3.75901281]
[1721566233695,0.00084,66970.0,66969.0,3.77301281]
[1721566234121,0.00184,66970.0,66969.0,3.77301281]
[1721566234323,0.00184,66970.0,66969.0,3.78129281]
[1721566234826,0.00084,66970.0,66969.0,3.78129281]
[1721566235347,0.00084,66970.0,66969.0,3.66976673]
[1721566235546,0.00184,66970.0,66969.0,3.68376673]
[1721566235768,0.00184,66970.0,66969.0,3.65136673]
[1721566236697,0.08204,66984.0,66979.0,1.343704]
[1721566236899,0.08204,66984.0,66979.0,1.64503604]
[1721566237878,0.00184,66980.0,66979.0,1.65903604]
[1721566238258,0.00184,66980.0,66979.0,1.67303604]
[1721566240099,0.00184,66980.0,66979.0,1.54908574]
[1721566240299,0.00184,66980.0,66979.0,1.91126497]
[1721566240502,0.00184,66980.0,66979.0,1.54908574]
[1721566240702,0.00184,66980.0,66979.0,1.67303603]
[1721566241407,0.00184,66980.0,66979.0,1.65003603]
[1721566241408,0.08304,66980.0,66979.0,1.65003603]
[1721566242175,0.14874,66980.0,66979.0,1.65003603]
[1721566243348,0.14874,66980.0,66979.0,1.65004127]
[1721566243762,0.08304,66980.0,66979.0,1.65004127]
[1721566245381,0.08304,66980.0,66979.0,1.88828195]
[1721566245784,0.00184,66980.0,66979.0,1.88828195]
[1721566246392,0.00184,66980.0,66979.0,1.83597626]
[1721566246595,0.00184,66980.0,66979.0,1.83597739]
[1721566248223,0.14874,66980.0,66979.0,1.83597739]
[1721566249289,0.14874,66980.0,66979.0,1.68667739]
[1721566249892,0.14874,66980.0,66979.0,1.52608574]
[1721566250110,0.14874,66980.0,66979.0,1.83597739]
[1721566250310,0.14874,66980.0,66979.0,1.52608574]
[1721566250511,0.14874,66980.0,66979.0,1.83597739]
[1721566252581,0.14874,66980.0,66979.0,1.53737639]
[1721566253196,0.14874,66980.0,66979.0,1.53739281]
[1721566262500,0.14874,66980.0,66979.0,1.22748474]
[1721566263797,0.14874,66980.0,66979.0,1.53739281]
[1721566266258,0.14874,66980.0,66979.0,1.22748474]
[1721566273193,0.08304,66980.0,66979.0,1.22748474]
[1721566274485,0.00184,66980.0,66979.0,1.22748474]
[1721566274690,0.00184,66980.0,66979.0,1.36508474]
[1721566275947,0.00184,66980.0,66979.0,2.00600609]
[1721566276541,0.00184,66980.0,66979.0,2.11797257]
[1721566277844,0.00184,66980.0,66979.0,2.41657357]
[1721566278997,0.00184,66980.0,66979.0,1.66368574]
[1721566279201,0.00184,66980.0,66979.0,2.41654567]
[1721566279607,0.00184,66980.0,66979.0,2.41654654]
[1721566280668,0.00184,66980.0,66979.0,2.41654929]
[1721566282321,0.00184,66980.0,66979.0,1.66368574]
[1721566282519,0.00184,66980.0,66979.0,2.41655594]
[1721566283449,0.00184,66980.0,66979.0,2.30457631]
[1721566286946,0.00184,66980.0,66979.0,2.22917631]
[1721566288714,0.00184,66980.0,66979.0,2.31007631]
[1721566289029,0.00184,66980.0,66979.0,1.69218574]
[1721566289228,0.00184,66980.0,66979.0,2.3330719]
[1721566289513,0.00184,66980.0,66979.0,2.33306886]
[1721566292298,0.00184,66980.0,66979.0,2.02318107]
[1721566292499,0.00184,66980.0,66979.0,2.33306835]
[1721566292697,0.00184,66980.0,66979.0,2.33399235]
[1721566295454,0.00184,66980.0,66979.0,1.55000974]
[1721566295650,0.00184,66980.0,66979.0,2.19089466]
[1721566298914,0.00184,66980.0,66979.0,2.19089476]
[1721566299173,0.00184,66980.0,66979.0,1.88100631]
[1721566299398,0.00184,66980.0,66979.0,2.19089476]
[1721566308759,0.00184,66980.0,66979.0,2.19089517]
[1721566311594,0.00184,66980.0,66979.0,2.19089434]
[1721566311767,0.00184,66980.0,66979.0,2.16789434]
[1721566311970,0.00184,66980.0,66979.0,2.16789359]
[1721566314792,0.00184,66980.0,66979.0,1.52700974]
[1721566315001,0.00184,66980.0,66979.0,2.16789946]
[1721566315210,0.00184,66980.0,66979.0,1.52700974]
[1721566315446,0.00184,66980.0,66979.0,2.16789977]
[1721566318564,0.00184,66980.0,66979.0,1.8580089]
[1721566318778,0.00184,66980.0,66979.0,2.16789977]
[1721566325582,0.08344,66980.0,66979.0,1.86929877]
[1721566325803,0.08344,66980.0,66979.0,1.98137494]
[1721566327444,0.08344,66980.0,66979.0,1.22840874]
[1721566327649,0.08344,66980.0,66979.0,1.98138026]
[1721566328478,0.00184,66980.0,66979.0,1.22840874]
[1721566328691,0.00184,66980.0,66979.0,1.86932117]
[1721566330936,0.00184,66980.0,66979.0,1.86932467]
[1721566331354,0.00184,66980.0,66979.0,1.86932795]
[1721566334260,0.00184,66980.0,66979.0,1.68338496]
[1721566334458,0.00184,66980.0,66979.0,1.95894732]
[1721566337326,0.00184,66980.0,66979.0,1.22840874]
[1721566337486,0.00184,66980.0,66979.0,1.95894329]
[1721566338041,0.00184,66980.0,66979.0,1.86932795]
[1721566338241,0.00184,66980.0,66979.0,2.16792895]
[1721566338473,0.00184,66980.0,66979.0,2.41804812]
[1721566338943,0.00184,66980.0,66979.0,2.30602895]
[1721566339325,0.00184,66980.0,66979.0,2.41804812]
[1721566340703,0.00184,66980.0,66979.0,2.1081319]
[1721566340905,0.00184,66980.0,66979.0,2.41802943]
[1721566341106,0.00184,66980.0,66979.0,2.41802944]
[1721566343629,0.00184,66980.0,66979.0,2.41803088]
[1721566343829,0.00184,66980.0,66979.0,1.97500727]
[1721566344033,0.00184,66980.0,66979.0,2.41803089]
[1721566346473,0.00184,66980.0,66979.0,2.27993089]
[1721566350454,0.00184,66980.0,66979.0,1.38392453]
[1721566350664,0.17244,66980.0,66979.0,0.54043208]
[1721566350895,0.17244,66980.0,66979.0,0.94420899]
[1721566351083,0.15515829,66980.0,66979.0,0.89939617]
[1721566351281,0.14004,66980.0,66979.0,0.89939617]
[1721566351734,0.13904,66980.0,66979.0,0.87139617]
[1721566351933,0.13904,66980.0,66979.0,0.87539617]
[1721566352136,0.13311349,66980.0,66979.0,0.87939617]
[1721566353638,0.13311349,66980.0,66979.0,0.87939886]
[1721566356172,0.16551349,66980.0,66979.0,0.87939886]
[1721566357206,0.16635349,66980.0,66979.0,0.87939886]
[1721566360437,0.16635349,66980.0,66979.0,0.755426]
[1721566360645,0.16635349,66980.0,66979.0,0.87939886]
[1721566370441,0.16635349,66980.0,66979.0,0.755426]
[1721566370651,0.16635349,66980.0,66979.0,0.87939886]
[1721566374797,0.16635349,66980.0,66979.0,34.42040386]
[1721566376379,0.13395349,66980.0,66979.0,34.42040386]
[1721566376579,0.07634,66980.0,66979.0,34.595032]
[1721566376802,0.00084,66980.0,66979.0,34.71900486]
[1721566377334,0.00084,66980.0,66979.0,34.71900431]
[1721566379781,0.00084,66980.0,66979.0,34.595032]
[1721566379998,0.00084,66980.0,66979.0,34.71900431]
[1721566380226,0.00084,66980.0,66979.0,34.733532]
[1721566380476,0.00084,66980.0,66979.0,34.85750431]
[1721566380679,0.00084,66980.0,66979.0,35.09576799]
[1721566380880,0.00084,66980.0,66979.0,35.04345656]
[1721566381295,0.00084,66980.0,66979.0,35.08822741]
[1721566382350,0.00084,66980.0,66979.0,35.08820542]
[1721566384530,0.00084,66980.0,66979.0,35.09574696]
[1721566384725,0.00084,66980.0,66979.0,35.09575456]
[1721566384930,0.00084,66980.0,66979.0,34.77989437]
[1721566385132,0.00084,66980.0,66979.0,34.71899437]
[1721566385563,0.00084,66980.0,66979.0,34.71900273]
[1721566388659,0.00084,66980.0,66979.0,34.595032]
[1721566388865,0.00084,66980.0,66979.0,34.71900273]
[1721566392169,0.00084,66980.0,66979.0,34.7190027]
[1721566392574,0.00084,66980.0,66979.0,34.71900269]
[1721566395373,0.00084,66980.0,66979.0,34.7190027]
[1721566396160,0.00084,66980.0,66979.0,34.76380773]
[1721566398696,0.00084,66980.0,66979.0,34.595032]
[1721566398904,0.00084,66980.0,66979.0,33.6738997]
[1721566398905,0.18144,66980.0,66979.0,33.6738997]
[1721566399109,0.14904,66980.0,66979.0,33.6738997]
[1721566399518,0.18144,66980.0,66979.0,33.6738997]
[1721566399725,0.14904,66980.0,66979.0,33.6738997]
[1721566401057,0.18144,66980.0,66979.0,33.6738997]
[1721566401803,0.18144,66980.0,66979.0,33.67391142]
[1721566404871,0.14904,66980.0,66979.0,33.67391142]
[1721566405073,0.18144,66980.0,66979.0,33.6739127]
[1721566405322,0.14904,66980.0,66979.0,33.6739127]
[1721566405933,0.18144,66980.0,66979.0,33.6739127]
[1721566409194,0.19032445,66980.0,66979.0,33.6739127]
[1721566411864,0.19032445,66980.0,66979.0,33.82321093]
[1721566412361,0.19032445,66980.0,66979.0,33.82321122]
[1721566414658,0.00972445,66980.0,66979.0,34.42041322]
[1721566414865,0.00084,66980.0,66979.0,34.443331]
[1721566415233,0.00084,66980.0,66979.0,34.56730748]
[1721566416490,0.03324,66980.0,66979.0,34.48440748]
[1721566416703,0.03324,66980.0,66979.0,34.12180648]
[1721566418253,0.03324,66980.0,66979.0,33.99783]
[1721566418381,0.03324,66980.0,66979.0,34.1218055]
[1721566419779,0.182538,66980.0,66979.0,33.6739045]
[1721566420031,0.03324,66980.0,66979.0,33.6739045]
[1721566420559,0.11574,66980.0,66979.0,33.6739045]
[1721566421385,0.11574,66980.0,66979.0,33.67391417]
[1721566421765,0.11574,66980.0,66979.0,33.549929]
[1721566421968,0.11574,66980.0,66979.0,33.67391427]
[1721566422166,0.17894,66980.0,66979.0,33.67391427]
[1721566424581,0.17894,66980.0,66979.0,33.67391295]
[1721566424782,0.17894,66980.0,66979.0,33.67391327]
[1721566427713,0.11574,66980.0,66979.0,33.67391327]
[1721566427917,0.11574,66980.0,66979.0,33.549929]
[1721566428119,0.03324,66980.0,66979.0,33.6739109]
[1721566431312,0.03324,66980.0,66979.0,33.699229]
[1721566431513,0.00084,66980.0,66979.0,33.82320957]
[1721566431731,0.03324,66980.0,66979.0,33.699229]
[1721566431934,0.03324,66980.0,66979.0,33.82320956]
[1721566433563,0.03324,66980.0,66979.0,34.12181054]
[1721566434472,0.03324,66980.0,66979.0,33.99783]
[1721566434628,0.03324,66980.0,66979.0,34.12181051]
[1721566438008,0.00084,66980.0,66979.0,34.85781251]
[1721566440326,0.00084,66980.0,66979.0,34.85780814]
[1721566440729,0.00084,66980.0,66979.0,34.733832]
[1721566440930,0.00084,66980.0,66979.0,34.85780814]
[1721566443500,0.00084,66980.0,66979.0,34.85780813]
[1721566444660,0.03324,66980.0,66979.0,34.85780813]
[1721566445006,0.00084,66980.0,66979.0,34.85780813]
[1721566445601,0.03324,66980.0,66979.0,34.85780813]
[1721566445982,0.00084,66980.0,66979.0,34.85780813]
[1721566446609,0.03324,66980.0,66979.0,34.85780813]
[1721566446820,0.00084,66980.0,66979.0,34.85780813]
[1721566447399,0.03324,66980.0,66979.0,34.85180813]
[1721566447620,0.00084,66980.0,66979.0,34.85180813]
[1721566448947,0.00084,66980.0,66979.0,34.727832]
[1721566449162,0.00084,66980.0,66979.0,34.85180833]
[1721566449352,0.03324,66980.0,66979.0,34.85180833]
[1721566450154,0.03324,66980.0,66979.0,34.727832]
[1721566450353,0.03324,66980.0,66979.0,34.85180833]
[1721566452179,0.00084,66980.0,66979.0,34.85180833]
[1721566452747,0.00084,66980.0,66979.0,34.85273233]
[1721566453714,0.03324,66980.0,66979.0,34.85273233]
[1721566453910,0.00084,66980.0,66979.0,34.728756]
[1721566454115,0.03324,66980.0,66979.0,34.85273233]
[1721566455271,0.00084,66980.0,66979.0,34.85273233]
[1721566456222,0.00084,66980.0,66979.0,34.55413133]
[1721566456673,0.00084,66980.0,66979.0,34.430155]
[1721566456822,0.00084,66980.0,66979.0,34.55413133]
[1721566457275,0.03324,66980.0,66979.0,34.55413133]
[1721566458590,0.00084,66980.0,66979.0,34.55413133]
[1721566458796,0.03324,66980.0,66979.0,34.55413133]
[1721566460149,0.00084,66980.0,66979.0,34.430155]
[1721566460330,0.03324,66980.0,66979.0,34.55413067]
[1721566463186,0.03324,66980.0,66979.0,34.41533067]
[1721566463488,0.03324,66980.0,66979.0,34.11672775]
[1721566463866,0.00084,66980.0,66979.0,34.11672805]
[1721566464222,0.03324,66980.0,66979.0,34.11672805]
[1721566466566,0.03324,66980.0,66979.0,34.11672807]
[1721566469124,0.03324,66980.0,66979.0,33.81812707]
[1721566469525,0.00084,66980.0,66979.0,34.11672807]
[1721566469727,0.03324,66980.0,66979.0,33.992754]
[1721566469957,0.03324,66980.0,66979.0,34.11672776]
[1721566471462,0.00084,66980.0,66979.0,34.41532876]
[1721566472803,0.01007535,66984.0,66981.0,0.149294]
[1721566473006,0.01007535,66984.0,66982.0,0.12676776]
[1721566473208,0.01007535,66984.0,66983.0,0.12397569]
[1721566473623,0.01007535,66984.0,66982.0,0.149293]
[1721566473827,0.01007535,66984.0,66983.0,0.12397569]
[1721566476233,0.01007535,66984.0,66982.0,0.149293]
[1721566476433,0.01007535,66984.0,66983.0,0.12397569]
[1721566478064,0.01007535,66984.0,66983.0,0.27326669]
[1721566480221,0.01007535,66984.0,66983.0,0.57184969]
[1721566488227,0.01007535,66984.0,66983.0,0.27326669]
[1721566488427,0.08607535,66984.0,66983.0,0.27326669]
[1721566488639,0.08607535,66984.0,66983.0,0.12397569]
[1721566488839,0.14617535,66984.0,66983.0,0.12397569]
[1721566489287,0.14617535,66984.0,66982.0,0.149293]
[1721566489607,0.14617535,66984.0,66983.0,0.12397569]
[1721566492917,0.14617535,66984.0,66983.0,0.12397972]
[1721566492918,0.08607535,66984.0,66983.0,0.12397972]
[1721566493125,0.08607535,66984.0,66983.0,0.27327072]
[1721566495850,0.08607535,66984.0,66983.0,0.149291]
[1721566496056,0.08607535,66984.0,66983.0,0.27327072]
[1721566496265,0.08607535,66984.0,66983.0,0.149291]
[1721566496466,0.08607535,66984.0,66983.0,0.27327072]
[1721566496669,0.08607535,66984.0,66983.0,0.12397972]
[1721566503698,0.01007535,66984.0,66983.0,0.12397972]
[1721566504987,0.01007535,66984.0,66981.0,0.152089]
[1721566505193,0.01007535,66984.0,66982.0,0.12397972]